fUSD/lending_fUSD_20250526
["ID","MTS","AMOUNT","RATE_DAILY","PERIOD"]
[362402273,1748253073635,-151.0,0.00031,7]
[362402274,1748253073644,-166.392011,0.00031,7]
[362402275,1748253073653,-166.392011,0.00031,7]
[362402276,1748253073663,-942.66582,0.00031,7]
[362402277,1748253073673,-169.931047,0.00031,7]
[362402278,1748253073682,-942.66582,0.00031,7]
[362402279,1748253073692,-169.931047,0.00031,7]
[362402280,1748253073701,-151.0,0.00031,7]
[362402281,1748253073710,-151.0,0.00031,7]
[362402282,1748253073720,-181.218212,0.00031,7]
[362402283,1748253073729,-181.218212,0.00031,7]
[362402284,1748253073749,-584.555545,0.00031,7]
[362402285,1748253073759,-584.555545,0.00031,7]
[362402286,1748253073769,-173.673204,0.00031,7]
[362402287,1748253073778,-158.090003,0.00031,7]
[362402288,1748253073788,-173.673204,0.00031,7]
[362402289,1748253073798,-158.090003,0.00031,7]
[362402290,1748253073808,-151.0,0.00031,7]
[362402291,1748253073821,-150.0,0.00031,2]
[362402292,1748253073830,-150.0,0.00031,2]
[362402293,1748253073841,-300.0,0.00031,2]
[362402294,1748253073851,-150.0,0.00031002,2]
[362402295,1748253073862,-150.0,0.00031027,2]
[362402296,1748253073873,-500.0,0.00031034,7]
[362402297,1748253073883,-150.0,0.00031055,2]
[362402298,1748253073893,-500.0,0.00031065,7]
[362402299,1748253073904,-1800.0,0.0003108,7]
[362402300,1748253073913,-150.0,0.00031082,2]
[362402301,1748253073924,-1612.0,0.00031096,2]
[362402302,1748253073933,-458.56,0.00031096,2]
[362402303,1748253073944,-500.0,0.00031105,7]
[362402304,1748253073955,-164.18563624,0.00031109,7]
[362402305,1748253073967,-154.30013086,0.0003111,2]
[362402306,1748253073980,-682.11879296,0.00031117,7]
[362402307,1748253073991,-500.0,0.00031147,7]
[362402308,1748253074001,-852.31998085,0.00031158,7]
[362402309,1748253074013,-500.0,0.000312,7]
[362402310,1748253074024,-150.0,0.00031233,2]
[362402311,1748253074036,-150.0,0.00031233,2]
[362402312,1748253074050,-150.0,0.00031233,2]
[362402313,1748253074059,-223.95,0.00031233,2]
[362402314,1748253074070,-150.46,0.00031233,2]
[362402315,1748253074080,-150.46,0.00031233,2]
[362402316,1748253074092,-150.46,0.00031233,2]
[362402317,1748253074103,-1479.35,0.00031233,2]
[362402318,1748253074117,-151.0,0.00031233,7]
[362402319,1748253074128,-179.971514,0.00031233,7]
[362402320,1748253074137,-151.0,0.00031233,7]
[362402321,1748253074148,-232.386068,0.00031233,7]
[362402322,1748253074158,-232.386068,0.00031233,7]
[362402323,1748253074171,-207.0,0.00031265,21]
[362402324,1748253074182,-7900.0,0.00031266,7]
[362402325,1748253074194,-500.0,0.0003128,7]
[362402326,1748253074205,-7900.0,0.00031285,7]
[362402327,1748253074215,-2000.0,0.00031327,7]
[362402328,1748253074227,-1000.0,0.0003134,7]
[362402329,1748253074237,-1000.0,0.00031354,7]
[362402330,1748253074247,-500.0,0.00031377,7]
[362402331,1748253074258,-500.0,0.00031383,7]
[362402332,1748253074268,-526.21,0.000314,14]
[362402333,1748253074279,-18996.80130776,0.0003143,4]
[362402334,1748253074290,-151.0,0.0003143,7]
[362402335,1748253074300,-297.524751,0.0003143,7]
[362402336,1748253074311,-297.524751,0.0003143,7]
[362402337,1748253074322,-654.892989,0.0003143,7]
[362402338,1748253074331,-654.892989,0.0003143,7]
[362402339,1748253074341,-151.0,0.0003143,7]
[362402340,1748253074351,-272.126462,0.0003143,7]
[362402341,1748253074361,-272.126462,0.0003143,7]
[362402342,1748253074371,-547.59293467,0.00031439,7]
[362402343,1748253074380,-500.0,0.00031451,7]
[362402344,1748253074390,-500.0,0.00031461,7]
[362402345,1748253074399,-2006.02,0.000315,7]
[362402346,1748253074409,-2000.0,0.000315,2]
[362402347,1748253074418,-9585.71,0.00031507,2]
[362402348,1748253074428,-500.0,0.00031528,7]
[362402349,1748253074438,-500.7,0.00031547,7]
[362402350,1748253074447,-2000.0,0.00031622,7]
[362402351,1748253074457,-500.0,0.00031709,7]
[362402352,1748253074466,-150.0,0.00031723,2]
[362402353,1748253074476,-500.0,0.00031735,7]
[362402354,1748253074486,-2000.0,0.00031746,7]
[362402355,1748253074495,-613.92,0.000318,31]
[362402356,1748253074504,-613.92,0.000318,31]
[362402357,1748253074514,-613.92,0.000318,31]
[362402358,1748253074523,-613.92,0.000318,31]
[362402359,1748253074533,-613.92,0.000318,31]
[362402360,1748253074542,-613.92,0.000318,31]
[362402361,1748253074740,-613.92,0.000318,31]
[362402362,1748253074753,-613.92,0.000318,31]
[362402363,1748253074764,-613.92,0.000318,31]
[362402364,1748253074774,-613.92,0.000318,31]
[362402365,1748253074785,-613.92,0.000318,31]
[362402366,1748253074795,-613.92,0.000318,31]
[362402367,1748253074806,-613.92,0.000318,31]
[362402368,1748253074817,-613.92,0.000318,31]
[362402369,1748253074827,-613.92,0.000318,31]
[362402370,1748253074837,-613.92,0.000318,31]
[362402371,1748253074848,-613.92,0.000318,31]
[362402372,1748253074859,-613.92,0.000318,31]
[362402373,1748253074870,-613.92,0.000318,31]
[362402374,1748253074880,-613.92,0.000318,31]
[362402375,1748253074890,-613.92,0.000318,31]
[362402376,1748253074900,-613.92,0.000318,31]
[362402377,1748253074912,-613.92,0.000318,31]
[362402378,1748253074922,-613.92,0.000318,31]
[362402379,1748253074931,-2000.0,0.00031807,7]
[362402380,1748253074941,-1800.0,0.00031823,7]
[362402381,1748253074951,-500.0,0.00031896,7]
[362402382,1748253074960,-600.0,0.000319,11]
[362402383,1748253074971,-500.0,0.000319,5]
[362402384,1748253074980,-151.0,0.000319,7]
[362402385,1748253074993,-1000.0,0.00031902,7]
[362402386,1748253075003,-500.0,0.00031935,7]
[362402387,1748253075012,-9035.0,0.00031952,3]
[362402388,1748253075023,-2500.0,0.0003199,30]
[362402389,1748253075034,-2500.0,0.0003199,30]
[362402390,1748253075047,-2500.0,0.0003199,30]
[362402391,1748253075057,-2500.0,0.0003199,30]
[362402392,1748253075067,-2500.0,0.0003199,30]
[362402393,1748253075077,-2500.0,0.0003199,30]
[362402394,1748253075089,-2500.0,0.0003199,30]
[362402395,1748253075099,-2500.0,0.0003199,30]
[362402396,1748253075108,-2500.0,0.0003199,30]
[362402397,1748253075119,-2500.0,0.0003199,30]
[362402398,1748253075129,-2500.0,0.0003199,30]
[362402399,1748253075139,-2500.0,0.0003199,30]
[362402400,1748253075148,-2500.0,0.0003199,30]
[362402401,1748253075158,-2500.0,0.0003199,30]
[362402402,1748253075168,-2500.0,0.0003199,30]
[362402403,1748253075177,-2500.0,0.0003199,30]
[362402404,1748253075187,-2500.0,0.0003199,30]
[362402405,1748253075197,-2500.0,0.0003199,30]
[362402406,1748253075207,-2500.0,0.0003199,30]
[362402407,1748253075216,-234.00057614,0.0003199,30]
[362402408,1748253075226,-1676.16708904,0.00032,7]
[362402409,1748253075235,-157.80143282,0.00032,3]
[362402410,1748253075245,-526906.49646781,0.00032,2]
[362402411,1748253075254,-10000.0,0.00032,14]
[362402412,1748253075263,-500.13271404,0.00032,2]
[362402413,1748253075273,-1537.06555515,0.00032,2]
[362402414,1748253075282,-35000.0,0.00032,2]
[362402415,1748253075292,-652.7839,0.00032,7]
[362402416,1748253075301,-151.0,0.00032,7]
[362402417,1748253075311,-161.14074,0.00032,7]
[362402418,1748253075320,-161.14074,0.00032,7]
[362402419,1748253075329,-151.0,0.00032,7]
[362402420,1748253075339,-151.0,0.00032,7]
[362402421,1748253075348,-151.0,0.00032,7]
[362402422,1748253075358,-151.0,0.00032,7]
[362402423,1748253075367,-206.262626,0.00032,7]
[362402424,1748253075377,-151.0,0.00032,7]
[362402425,1748253075389,-151.0,0.00032,7]
[362402426,1748253075398,-166.392011,0.00032,7]
[362402427,1748253075408,-166.392011,0.00032,7]
[362402428,1748253075417,-942.66582,0.00032,7]
[362402429,1748253075427,-169.931047,0.00032,7]
[362402430,1748253075436,-942.66582,0.00032,7]
[362402431,1748253075446,-169.931047,0.00032,7]
[362402432,1748253075455,-189.198661,0.00032,7]
[362402433,1748253075464,-151.0,0.00032,7]
[362402434,1748253075474,-181.218212,0.00032,7]
[362402435,1748253075483,-584.555545,0.00032,7]
[362402436,1748253075492,-181.218212,0.00032,7]
[362402437,1748253075502,-584.555545,0.00032,7]
[362402438,1748253075512,-173.673204,0.00032,7]
[362402439,1748253075521,-158.090003,0.00032,7]
[362402440,1748253075531,-173.673204,0.00032,7]
[362402441,1748253075541,-158.090003,0.00032,7]
[362402442,1748253075550,-297.524751,0.00032,7]
[362402443,1748253075561,-297.524751,0.00032,7]
[362402444,1748253075571,-151.0,0.00032,7]
[362402445,1748253075581,-654.892989,0.00032,7]
[362402446,1748253075592,-654.892989,0.00032,7]
[362402447,1748253075602,-213.587305,0.00032,7]
[362402448,1748253075614,-151.0,0.00032,7]
[362402449,1748253075623,-232.386068,0.00032,7]
[362402450,1748253075637,-232.386068,0.00032,7]
[362402451,1748253075647,-272.126462,0.00032,7]
[362402452,1748253075657,-272.126462,0.00032,7]
[362402453,1748253075666,-151.0,0.00032,7]
[362402454,1748253075675,-1800.0,0.00032013,7]
[362402455,1748253075685,-164.67320101,0.0003204,7]
[362402456,1748253075694,-966.52134771,0.00032059,7]
[362402457,1748253075703,-526.21,0.000321,14]
[362402458,1748253075712,-1800.0,0.00032108,7]
[362402459,1748253075722,-1000.0,0.00032128,7]
[362402460,1748253075731,-1000.0,0.0003214,7]
[362402461,1748253075740,-25000.0,0.000322,16]
[362402462,1748253075749,-25000.0,0.000322,16]
[362402463,1748253075759,-25000.0,0.000322,16]
[362402464,1748253075769,-25000.0,0.000322,16]
[362402465,1748253075779,-25000.0,0.000322,16]
[362402466,1748253075788,-25000.0,0.000322,16]
[362402467,1748253075797,-1556.18828532,0.000322,16]
[362402468,1748253075807,-735.41661172,0.000322,16]
[362402469,1748253075816,-505.07327543,0.000322,16]
[362402470,1748253075825,-743.79115505,0.00032209,2]
[362402471,1748253075835,-500.0,0.00032227,7]
[362402472,1748253075844,-500.0,0.00032254,7]
[362402473,1748253075854,-452.35,0.00032328,2]
[362402474,1748253075863,-2000.0,0.0003235,7]
[362402475,1748253075873,-646.26735152,0.000324,2]
[362402476,1748253075885,-478.0,0.00032414,14]
[362402477,1748253075894,-500.0,0.00032439,7]
[362402478,1748253075904,-150.0,0.00032444,2]
[362402479,1748253075913,-838.61,0.00032459,2]
[362402480,1748253075922,-200.31040901,0.00032603,2]
[362402481,1748253075932,-500.0,0.00032624,7]
[362402482,1748253075942,-4671.15943478,0.000328,2]
[362402483,1748253075952,-526.21,0.000328,14]
[362402484,1748253075961,-500.0,0.00032845,7]
[362402485,1748253075971,-303.0225,0.00032876,2]
[362402486,1748253075980,-337.25749501,0.00032876,2]
[362402487,1748253075990,-500.0,0.00032876,2]
[362402488,1748253076000,-500.0,0.00032876,2]
[362402489,1748253076010,-1069.37,0.00032876,2]
[362402490,1748253076019,-1069.37,0.00032876,2]
[362402491,1748253076029,-1069.37,0.00032876,2]
[362402492,1748253076044,-1069.37,0.00032876,2]
[362402493,1748253076055,-1069.37,0.00032876,2]
[362402494,1748253076064,-1069.37,0.00032876,2]
[362402495,1748253076073,-1069.37,0.00032876,2]
[362402496,1748253076083,-1069.37,0.00032876,2]
[362402497,1748253076092,-1069.37,0.00032876,2]
[362402498,1748253076102,-1069.37,0.00032876,2]
[362402499,1748253076113,-1069.37,0.00032876,2]
[362402500,1748253076123,-1069.37,0.00032876,2]
[362402501,1748253076135,-1069.37,0.00032876,2]
[362402502,1748253076145,-1069.37,0.00032876,2]
[362402503,1748253076155,-1069.37,0.00032876,2]
[362402504,1748253076165,-1069.37,0.00032876,2]
[362402505,1748253076175,-1069.37,0.00032876,2]
[362402506,1748253076185,-1069.37,0.00032876,2]
[362402507,1748253076194,-1069.37,0.00032876,2]
[362402508,1748253076204,-1069.37,0.00032876,2]
[362402509,1748253076215,-1069.37,0.00032876,2]
[362402510,1748253076225,-1069.37,0.00032876,2]
[362402511,1748253076235,-1069.37,0.00032876,2]
[362402512,1748253076245,-1069.39265405,0.00032876,2]
[362402513,1748253076255,-9585.71,0.00032877,2]
[362402514,1748253076266,-332.78,0.00032877,2]
[362402515,1748253076275,-2000.0,0.00032877,7]
[362402516,1748253076286,-500.0,0.00032877,5]
[362402517,1748253076296,-162.96,0.00032877,2]
[362402518,1748253076307,-162.96,0.00032877,2]
[362402519,1748253076316,-162.96,0.00032877,2]
[362402520,1748253076326,-162.96,0.00032877,2]
[362402521,1748253076337,-153.6551418,0.00032877,2]
[362402522,1748253076347,-930.0,0.00032877,2]
[362402523,1748253076358,-150.0,0.00032877,2]
[362402524,1748253076368,-16226.89915343,0.00032888,2]
[362402525,1748253076378,-524.0,0.000329,2]
[362402526,1748253076391,-930.0,0.00032904,2]
[362402527,1748253076402,-150.0,0.00032904,2]
[362402528,1748253076412,-930.0,0.00032932,2]
[362402529,1748253076423,-150.0,0.00032932,2]
[362402530,1748253076432,-152.0,0.0003295,5]
[362402531,1748253076442,-930.0,0.00032959,2]
[362402532,1748253076452,-150.0,0.00032959,2]
[362402533,1748253076462,-2000.0,0.00032984,7]
[362402534,1748253076472,-930.0,0.00032987,2]
[362402535,1748253076482,-150.0,0.00032987,2]
[362402536,1748253076491,-1014.15611032,0.00033,7]
[362402537,1748253076501,-4574.00222751,0.00033,2]
[362402538,1748253076511,-3500.0,0.00033,5]
[362402539,1748253076521,-200544.97068858,0.00033,12]
[362402540,1748253076531,-160.0,0.00033,2]
[362402541,1748253076540,-160.0,0.00033,2]
[362402542,1748253076550,-160.0,0.00033,2]
[362402543,1748253076560,-160.0,0.00033,2]
[362402544,1748253076570,-160.0,0.00033,2]
[362402545,1748253076579,-160.0,0.00033,2]
[362402546,1748253076589,-160.0,0.00033,2]
[362402547,1748253076599,-160.0,0.00033,2]
[362402548,1748253076609,-160.0,0.00033,2]
[362402549,1748253076618,-160.0,0.00033,2]
[362402550,1748253076628,-160.0,0.00033,2]
[362402551,1748253076639,-160.0,0.00033,2]
[362402552,1748253076649,-160.0,0.00033,2]
[362402553,1748253076659,-160.0,0.00033,2]
[362402554,1748253076669,-160.0,0.00033,2]
[362402555,1748253076678,-160.0,0.00033,2]
[362402556,1748253076688,-160.0,0.00033,2]
[362402557,1748253076699,-160.0,0.00033,2]
[362402558,1748253076708,-160.0,0.00033,2]
[362402559,1748253076719,-160.0,0.00033,2]
[362402560,1748253076728,-160.0,0.00033,2]
[362402561,1748253076739,-160.0,0.00033,2]
[362402562,1748253076748,-160.0,0.00033,2]
[362402563,1748253076758,-160.0,0.00033,2]
[362402564,1748253076767,-160.0,0.00033,2]
[362402565,1748253076777,-160.0,0.00033,2]
[362402566,1748253076786,-160.0,0.00033,2]
[362402567,1748253076796,-160.0,0.00033,2]
[362402568,1748253076807,-160.0,0.00033,2]
[362402569,1748253076817,-160.0,0.00033,2]
[362402570,1748253076827,-160.0,0.00033,2]
[362402571,1748253076838,-160.0,0.00033,2]
[362402572,1748253076848,-10056.26210169,0.00033,5]
[362402573,1748253076858,-25210.12413039,0.00033,2]
[362402574,1748253076869,-9360.73,0.00033,5]
[362402575,1748253076878,-186.599999,0.00033,2]
[362402576,1748253076890,-5000.0,0.00033,5]
[362402577,1748253076900,-186.6,0.00033,2]
[362402578,1748253076909,-1574.0,0.00033,120]
[362402579,1748253076918,-434.82328547,0.00033,120]
[362402580,1748253076927,-30165.79,0.00033,14]
[362402581,1748253076937,-2541.61496369,0.00033,120]
[362402582,1748253076947,-1321.9472213,0.00033,120]
[362402583,1748253076961,-527.101331,0.00033,14]
[362402584,1748253076971,-700.0,0.00033,2]
[362402585,1748253076981,-2006.02,0.00033,14]
[362402586,1748253076991,-151.0,0.00033,7]
[362402587,1748253077000,-161.14074,0.00033,7]
[362402588,1748253077010,-161.140748,0.00033,7]
[362402589,1748253077020,-151.0,0.00033,7]
[362402590,1748253077030,-151.0,0.00033,7]
[362402591,1748253077042,-151.0,0.00033,7]
[362402592,1748253077052,-151.0,0.00033,7]
[362402593,1748253077063,-151.0,0.00033,7]
[362402594,1748253077072,-151.0,0.00033,7]
[362402595,1748253077082,-166.392011,0.00033,7]
[362402596,1748253077092,-166.392011,0.00033,7]
[362402597,1748253077102,-942.66582,0.00033,7]
[362402598,1748253077111,-169.931047,0.00033,7]
[362402599,1748253077123,-942.66582,0.00033,7]
[362402600,1748253077134,-169.931047,0.00033,7]
[362402601,1748253077143,-167.519564,0.00033,7]
[362402602,1748253077153,-181.218212,0.00033,7]
[362402603,1748253077163,-584.555545,0.00033,7]
[362402604,1748253077173,-181.218212,0.00033,7]
[362402605,1748253077183,-584.555545,0.00033,7]
[362402606,1748253077193,-173.673204,0.00033,7]
[362402607,1748253077202,-158.090003,0.00033,7]
[362402608,1748253077213,-173.673204,0.00033,7]
[362402609,1748253077223,-158.090003,0.00033,7]
[362402610,1748253077232,-297.524751,0.00033,7]
[362402611,1748253077242,-297.524747,0.00033,7]
[362402612,1748253077252,-151.0,0.00033,7]
[362402613,1748253077262,-654.892989,0.00033,7]
[362402614,1748253077271,-654.892991,0.00033,7]
[362402615,1748253077282,-151.0,0.00033,7]
[362402616,1748253077291,-214.0,0.00033,2]
[362402617,1748253077301,-232.386068,0.00033,7]
[362402618,1748253077311,-232.386071,0.00033,7]
[362402619,1748253077322,-272.126462,0.00033,7]
[362402620,1748253077331,-272.12646,0.00033,7]
[362402621,1748253077342,-930.0,0.00033014,2]
[362402622,1748253077352,-230.77136575,0.00033014,2]
[362402623,1748253077362,-2000.0,0.00033034,7]
[362402624,1748253077372,-930.0,0.00033041,2]
[362402625,1748253077383,-500.0,0.00033047,7]
[362402626,1748253077393,-500.0,0.00033053,7]
[362402627,1748253077403,-2000.0,0.00033061,7]
[362402628,1748253077413,-930.0,0.00033069,2]
[362402629,1748253077423,-500.0,0.00033096,7]
[362402630,1748253077432,-930.0,0.00033096,2]
[362402631,1748253077442,-217.30533824,0.000331,2]
[362402632,1748253077451,-930.0,0.00033124,2]
[362402633,1748253077462,-200.0,0.00033151,2]
[362402634,1748253077473,-930.0,0.00033151,2]
[362402635,1748253077483,-195.14,0.00033165,2]
[362402636,1748253077493,-150.0,0.00033165,2]
[362402637,1748253077503,-930.0,0.00033178,2]
[362402638,1748253077513,-930.0,0.00033206,2]
[362402639,1748253077522,-500.0,0.0003322,2]
[362402640,1748253077532,-930.0,0.00033233,2]
[362402641,1748253077541,-930.0,0.00033261,2]
[362402642,1748253077551,-930.0,0.00033288,2]
[362402643,1748253077561,-500.0,0.00033293,2]
[362402644,1748253077570,-800.0,0.00033298,2]
[362402645,1748253077579,-466.413,0.00033298,2]
[362402646,1748253077588,-436.648,0.00033298,2]
[362402647,1748253077598,-930.0,0.00033315,2]
[362402648,1748253077608,-500.0,0.0003333,7]
[362402649,1748253077617,-930.0,0.00033343,2]
[362402650,1748253077626,-500.0,0.0003337,2]
[362402651,1748253077639,-930.0,0.0003337,2]
[362402652,1748253077813,-930.0,0.00033398,2]
[362402653,1748253077823,-930.0,0.00033425,2]
[362402654,1748253077833,-930.0,0.00033452,2]
[362402655,1748253077846,-930.0,0.0003348,2]
[362402656,1748253077858,-500.0,0.00033487,7]
[362402657,1748253077868,-1172.91934844,0.000335,2]
[362402658,1748253077878,-160.0,0.000335,4]
[362402659,1748253077889,-160.0,0.000335,4]
[362402660,1748253077898,-613.92,0.000335,31]
[362402661,1748253077908,-613.92,0.000335,31]
[362402662,1748253077917,-613.92,0.000335,31]
[362402663,1748253077927,-613.92,0.000335,31]
[362402664,1748253077936,-613.92,0.000335,31]
[362402665,1748253077945,-613.92,0.000335,31]
[362402666,1748253077955,-613.92,0.000335,31]
[362402667,1748253077964,-613.92,0.000335,31]
[362402668,1748253077974,-613.92,0.000335,31]
[362402669,1748253077983,-613.92,0.000335,31]
[362402670,1748253077993,-613.92,0.000335,31]
[362402671,1748253078003,-613.92,0.000335,31]
[362402672,1748253078012,-2000.0,0.00033501,7]
[362402673,1748253078022,-944.13040119,0.00033507,2]
[362402674,1748253078031,-1800.0,0.00033545,7]
[362402675,1748253078043,-746.34282087,0.00033579,2]
[362402676,1748253078053,-526.21,0.000336,14]
[362402677,1748253078063,-7900.0,0.0003367,7]
[362402678,1748253078073,-452.35,0.00033698,2]
[362402679,1748253078083,-150.49,0.00033699,2]
[362402680,1748253078093,-150.49,0.00033699,2]
[362402681,1748253078103,-1743.71,0.00033699,2]
[362402682,1748253078112,-170.26,0.00033699,2]
[362402683,1748253078122,-353.5,0.00033699,2]
[362402684,1748253078134,-500.0,0.00033768,2]
[362402685,1748253078144,-500.0,0.00033821,7]
[362402686,1748253078154,-1000.0,0.00033824,7]
[362402687,1748253078164,-7900.0,0.00033827,7]
[362402688,1748253078175,-2000.0,0.00033838,7]
[362402689,1748253078185,-500.0,0.00033854,7]
[362402690,1748253078195,-307.05090631,0.00033857,2]
[362402691,1748253078206,-150.0,0.00033886,2]
[362402692,1748253078216,-233.04,0.00033904,120]
[362402693,1748253078226,-7900.0,0.00033931,7]
[362402694,1748253078236,-1914.834,0.0003397,37]
[362402695,1748253078246,-195.314,0.0003397,37]
[362402696,1748253078256,-500.0,0.00033977,2]
[362402697,1748253078267,-1000.0,0.00034,13]
[362402698,1748253078277,-671.0,0.00034,20]
[362402699,1748253078286,-976.96,0.00034,2]
[362402700,1748253078295,-425.21917859,0.00034,2]
[362402701,1748253078306,-65042.75061206,0.00034,7]
[362402702,1748253078316,-1941.85345353,0.00034,2]
[362402703,1748253078326,-500.0,0.00034002,7]
[362402704,1748253078336,-500.0,0.00034032,7]
[362402705,1748253078346,-500.0,0.00034036,7]
[362402706,1748253078360,-500.0,0.00034043,7]
[362402707,1748253078370,-500.0,0.00034048,7]
[362402708,1748253078380,-78193.23890404,0.000341,2]
[362402709,1748253078392,-500.0,0.00034168,7]
[362402710,1748253078402,-2000.0,0.000342,2]
[362402711,1748253078412,-1000.0,0.00034215,7]
[362402712,1748253078422,-606.045,0.00034246,3]
[362402713,1748253078431,-18603.05,0.00034247,2]
[362402714,1748253078442,-192.0,0.00034247,30]
[362402715,1748253078452,-500.0,0.00034298,7]
[362402716,1748253078462,-526.21,0.000343,14]
[362402717,1748253078471,-500.0,0.00034306,7]
[362402718,1748253078481,-199.31643152,0.0003434,5]
[362402719,1748253078491,-7900.0,0.00034363,7]
[362402720,1748253078501,-166.30580718,0.000344,15]
[362402721,1748253078510,-306.3078205,0.00034402,7]
[362402722,1748253078519,-47581.62880299,0.0003442,2]
[362402723,1748253078529,-151.0,0.00034426,7]
[362402724,1748253078539,-181.218212,0.00034426,7]
[362402725,1748253078549,-181.218207,0.00034426,7]
[362402726,1748253078558,-157.052618,0.00034498,120]
[362402727,1748253078568,-160.0,0.000345,9]
[362402728,1748253078578,-160.0,0.000345,9]
[362402729,1748253078587,-30165.79,0.000345,14]
[362402730,1748253078597,-151.0,0.000345,7]
[362402731,1748253078606,-151.0,0.000345,7]
[362402732,1748253078616,-151.0,0.000345,7]
[362402733,1748253078625,-151.0,0.000345,7]
[362402734,1748253078637,-166.392011,0.000345,7]
[362402735,1748253078646,-166.392015,0.000345,7]
[362402736,1748253078656,-942.66582,0.000345,7]
[362402737,1748253078665,-169.931047,0.000345,7]
[362402738,1748253078675,-942.6658116,0.000345,7]
[362402739,1748253078685,-169.931049,0.000345,7]
[362402740,1748253078695,-584.555545,0.000345,7]
[362402741,1748253078705,-584.555541,0.000345,7]
[362402742,1748253078715,-173.673204,0.000345,7]
[362402743,1748253078725,-158.090003,0.000345,7]
[362402744,1748253078735,-173.673203,0.000345,7]
[362402745,1748253078745,-158.089995,0.000345,7]
[362402746,1748253078754,-151.0,0.000345,7]
[362402747,1748253078763,-473.0,0.00034574,30]
[362402748,1748253078773,-150.0,0.00034607,2]
[362402749,1748253078783,-500.0,0.00034624,7]
[362402750,1748253078793,-1800.0,0.00034635,7]
[362402751,1748253078802,-1000.0,0.0003464,5]
[362402752,1748253078812,-500.0,0.00034676,7]
[362402753,1748253078822,-118255.9146793,0.000347,7]
[362402754,1748253078831,-838.61,0.00034723,2]
[362402755,1748253078841,-7900.0,0.00034739,7]
[362402756,1748253078850,-157.052618,0.00034798,120]
[362402757,1748253078860,-200.0,0.0003488,12]
[362402758,1748253078869,-225.57139242,0.00034895,2]
[362402759,1748253078879,-339.86504,0.000349,120]
[362402760,1748253078891,-30165.79,0.000349,14]
[362402761,1748253078900,-2250.83308172,0.000349,120]
[362402762,1748253078910,-646.26735152,0.000349,2]
[362402763,1748253078920,-1800.0,0.0003491,7]
[362402764,1748253078930,-1000.0,0.00034962,7]
[362402765,1748253078940,-192.78276272,0.00034965,7]
[362402766,1748253078951,-110953.41428196,0.00035,2]
[362402767,1748253078961,-3900.0,0.00035,7]
[362402768,1748253078970,-7000.0,0.00035,7]
[362402769,1748253078980,-1000.0,0.00035,2]
[362402770,1748253078989,-7025.0,0.00035,3]
[362402771,1748253078999,-1000.0,0.00035,10]
[362402772,1748253079009,-1462668.2104458,0.00035,7]